bitfinex-derivatives/quotes_BTCF0:USTF0_20250915
["timestamp","ask_amount","ask_price","bid_price","bid_amount"]
[1757899233136,0.1093404,114990.0,114980.0,0.85620008]
[1757899233346,0.09379363,114990.0,114980.0,0.85620008]
[1757899233549,0.03521,114970.0,114960.0,0.09881045]
[1757899233846,0.05964838,114970.0,114960.0,0.89669045]
[1757899234048,0.05964838,114970.0,114960.0,1.33160045]
[1757899234949,0.05964838,114970.0,114960.0,1.33260045]
[1757899242049,0.05964838,114970.0,114960.0,1.33160045]
[1757899242354,0.05964838,114970.0,114960.0,1.33360045]
[1757899242852,0.03765838,114970.0,114960.0,1.41448053]
[1757899246360,0.03765838,114970.0,114960.0,1.66448053]
[1757899246549,0.03765838,114970.0,114960.0,1.98448053]
[1757899249754,0.03765838,114970.0,114960.0,1.98449871]
[1757899252658,0.03765838,114970.0,114960.0,1.54958871]
[1757899252861,0.06028838,114970.0,114960.0,0.75170871]
[1757899253053,0.06028838,114970.0,114960.0,1.98429871]
[1757899257160,0.06028838,114970.0,114960.0,2.25089871]
[1757899260367,0.06028838,114970.0,114960.0,1.45321871]
[1757899260566,0.06028838,114970.0,114960.0,1.93077871]
[1757899260962,0.06028838,114970.0,114960.0,1.13321871]
[1757899261162,0.06028838,114970.0,114960.0,1.93077871]
[1757899261666,0.06028838,114970.0,114960.0,1.13321871]
[1757899261861,0.06028838,114970.0,114960.0,1.93077871]
[1757899262062,0.03765838,114970.0,114960.0,2.21077871]
[1757899263368,0.04436525,114970.0,114960.0,2.21077871]
[1757899263565,0.06880363,114970.0,114960.0,2.21077871]
[1757899263964,0.06880363,114970.0,114960.0,1.41321871]
[1757899264163,0.06880363,114970.0,114960.0,2.04896037]
[1757899264363,0.06880363,114970.0,114960.0,2.21073871]
[1757899265463,0.06880363,114970.0,114960.0,1.41321871]
[1757899265665,0.06880363,114970.0,114960.0,2.21069871]
[1757899267970,0.06880363,114970.0,114960.0,2.19276834]
[1757899268173,0.09103363,114970.0,114960.0,1.66276834]
[1757899268572,0.09103363,114970.0,114960.0,0.86528834]
[1757899268764,0.09103363,114970.0,114960.0,1.66272834]
[1757899268964,0.09103363,114970.0,114960.0,1.39612834]
[1757899269767,0.09103363,114970.0,114960.0,0.59868834]
[1757899269967,0.433126,114970.0,114960.0,0.002]
[1757899270270,0.47312839,114970.0,114960.0,0.79944]
[1757899270469,0.47312839,114970.0,114960.0,0.88032917]
[1757899271470,0.47312839,114970.0,114960.0,0.002]
[1757899272775,0.39223922,114970.0,114960.0,0.002]
[1757899272975,0.54294124,114970.0,114960.0,0.002]
[1757899273385,0.52738403,114970.0,114960.0,0.002]
[1757899275284,0.55850648,114970.0,114960.0,0.002]
[1757899279279,0.6082732,114970.0,114940.0,0.08088917]
[1757899279479,0.01268,114920.0,114910.0,1.6706]
[1757899279783,0.01268,114920.0,114910.0,3.58350347]
[1757899280584,0.01268,114920.0,114910.0,3.58750347]
[1757899280777,0.01268,114920.0,114910.0,3.59350347]
[1757899281988,0.01268,114920.0,114910.0,3.43350347]
[1757899282685,0.01268,114920.0,114910.0,2.99859347]
[1757899283086,0.01268,114920.0,114910.0,3.43350347]
[1757899287595,0.01268,114930.0,114910.0,3.51439264]
[1757899287793,0.01268,114940.0,114920.0,0.67757751]
[1757899288093,0.03708088,114940.0,114930.0,1.39408834]
[1757899288488,0.05931088,114940.0,114930.0,0.95917834]
[1757899288684,0.05931088,114940.0,114930.0,1.39408834]
[1757899288886,0.03708088,114940.0,114930.0,1.51167896]
[1757899289090,0.03708088,114940.0,114930.0,1.91167896]
[1757899289490,0.03708088,114940.0,114930.0,1.91467896]
[1757899289696,0.03708088,114940.0,114930.0,1.91767896]
[1757899300505,0.03708088,114940.0,114930.0,1.75590062]
[1757899300697,0.03708088,114940.0,114930.0,1.91767896]
[1757899309212,0.03708088,114940.0,114930.0,1.83678979]
[1757899309610,0.03708088,114940.0,114930.0,1.52678979]
[1757899309811,0.03708088,114940.0,114930.0,1.52684386]
[1757899310711,0.04600924,114940.0,114930.0,1.52684386]
[1757899311514,0.31779924,114940.0,114930.0,0.88402324]
[1757899311707,0.34891655,114940.0,114930.0,0.88402324]
[1757899311908,0.31779924,114940.0,114930.0,0.08694324]
[1757899312108,0.34891655,114940.0,114930.0,0.88398324]
[1757899312614,0.34891655,114940.0,114930.0,0.08694324]
[1757899312816,0.34891655,114940.0,114930.0,0.88398324]
[1757899313416,0.39561537,114940.0,114930.0,0.88398324]
[1757899314917,0.39561537,114940.0,114930.0,0.80304]
[1757899315215,0.39561537,114940.0,114930.0,0.88398324]
[1757899315914,0.42985979,114940.0,114930.0,0.006]
[1757899316112,0.4454413,114940.0,114930.0,0.006]
[1757899316513,0.46099851,114940.0,114930.0,0.006]
[1757899322222,0.39874248,114940.0,114930.0,0.006]
[1757899323430,0.47658184,114940.0,114930.0,0.006]
[1757899326323,0.22658184,114940.0,114930.0,0.006]
[1757899326522,0.36450476,114940.0,114930.0,0.006]
[1757899326721,0.03566,114920.0,114910.0,0.08094324]
[1757899326921,0.06006088,114920.0,114910.0,0.14]
[1757899327116,0.14100412,114920.0,114910.0,0.57491]
[1757899327317,0.14100412,114920.0,114910.0,0.43491]
[1757899327723,0.06006088,114920.0,114910.0,0.43491]
[1757899328519,0.06006088,114920.0,114910.0,0.43791]
[1757899328823,0.06006088,114920.0,114910.0,0.44191]
[1757899330329,0.21187002,114920.0,114910.0,0.007]
[1757899330531,0.23202635,114920.0,114910.0,0.007]
[1757899330832,0.26315173,114920.0,114910.0,0.007]
[1757899331330,0.18220849,114920.0,114910.0,0.007]
[1757899331530,0.26315173,114920.0,114910.0,0.007]
[1757899332132,0.18220849,114920.0,114910.0,0.007]
[1757899332326,0.26315173,114920.0,114910.0,0.007]
[1757899333530,0.26415173,114920.0,114910.0,0.003]
[1757899334627,0.26415173,114920.0,114900.0,1.56408597]
[1757899334833,0.01358,114910.0,114900.0,1.56408597]
[1757899335137,0.03798088,114910.0,114900.0,1.56408597]
[1757899335434,0.03798088,114910.0,114900.0,1.99899597]
[1757899335835,0.03798088,114910.0,114900.0,1.99999597]
[1757899336037,0.03798088,114910.0,114900.0,1.91905273]
[1757899336535,0.03798088,114910.0,114900.0,1.99999597]
[1757899337433,0.03798088,114910.0,114900.0,1.91905273]
[1757899337641,0.03858501,114910.0,114900.0,1.99999597]
[1757899337941,0.03858501,114910.0,114900.0,1.91905273]
[1757899338730,0.03858501,114910.0,114900.0,1.99999597]
[1757899339132,0.03858501,114910.0,114900.0,1.91905273]
[1757899339335,0.03858501,114910.0,114900.0,1.99999597]
[1757899340136,0.03858501,114910.0,114900.0,1.91905273]
[1757899340331,0.03858501,114910.0,114900.0,1.99999597]
[1757899341035,0.03858501,114910.0,114900.0,1.91905273]
[1757899341232,0.04470538,114910.0,114900.0,1.99999597]
[1757899341440,0.06971039,114910.0,114900.0,1.99999597]
[1757899342240,0.06971039,114910.0,114900.0,1.91905273]
[1757899342739,0.06971039,114910.0,114900.0,1.48414273]
[1757899342942,0.06971039,114910.0,114900.0,1.99999597]
[1757899343347,0.06971039,114910.0,114900.0,1.91905273]
[1757899343546,0.06971039,114910.0,114900.0,1.99999597]
[1757899343942,0.15065363,114910.0,114900.0,1.91905273]
[1757899344347,0.06971039,114910.0,114900.0,1.91905273]
[1757899344554,0.06972501,114910.0,114900.0,1.91905273]
[1757899344948,0.06972501,114910.0,114900.0,1.91805273]
[1757899345244,0.0914109,114910.0,114900.0,1.91805273]
[1757899345549,0.11743053,114910.0,114900.0,1.91805273]
[1757899346847,0.19837377,114910.0,114900.0,1.91805273]
[1757899347052,0.07072501,114910.0,114900.0,1.91805273]
[1757899347252,0.0924109,114910.0,114900.0,1.91805273]
[1757899347552,0.11743053,114910.0,114900.0,1.91805273]
[1757899348550,0.11743053,114910.0,114900.0,1.99899597]
[1757899348852,0.07072501,114910.0,114900.0,1.99899597]
[1757899349552,0.07072501,114910.0,114900.0,1.91805273]
[1757899350051,0.07072501,114910.0,114900.0,1.99899597]
[1757899350248,0.07072501,114910.0,114900.0,1.91805273]
[1757899350447,0.07072501,114910.0,114900.0,1.99899597]
[1757899350849,0.07072501,114910.0,114900.0,1.91805273]
[1757899351049,0.07072501,114910.0,114900.0,1.99899597]
[1757899352654,0.0924109,114910.0,114900.0,1.99899597]
[1757899353050,0.11743053,114910.0,114900.0,1.99899597]
[1757899355457,0.08630515,114910.0,114900.0,1.99899597]
[1757899356357,0.08630515,114910.0,114900.0,1.91805273]
[1757899356552,0.08630515,114910.0,114900.0,1.99899597]
[1757899357157,0.08630515,114910.0,114900.0,1.91805273]
[1757899357358,0.08630515,114910.0,114900.0,1.99899597]
[1757899358052,0.08630515,114910.0,114900.0,1.91805273]
[1757899358356,0.08630515,114910.0,114900.0,1.99899597]
[1757899359159,0.08630515,114910.0,114900.0,1.91805273]
[1757899359361,0.08630515,114910.0,114900.0,1.99899597]
[1757899360360,0.08630515,114910.0,114900.0,1.91805273]
[1757899360561,0.08630515,114910.0,114900.0,1.99899597]
[1757899360761,0.08630515,114910.0,114900.0,2.79839597]
[1757899362363,0.08630515,114910.0,114900.0,2.71745273]
[1757899362558,0.08630515,114910.0,114900.0,2.79839597]
[1757899363562,0.03959963,114910.0,114900.0,2.79839597]
[1757899364964,0.03959963,114910.0,114900.0,1.99899597]
[1757899365164,0.03959963,114910.0,114900.0,2.71693273]
[1757899366263,0.12054287,114910.0,114900.0,1.91805273]
[1757899368561,0.1827989,114910.0,114900.0,1.91805273]
[1757899369360,0.03959963,114910.0,114900.0,1.91805273]
[1757899371869,0.12059929,114910.0,114900.0,1.99905239]
[1757899372764,0.18285532,114910.0,114900.0,1.56414239]
[1757899372964,0.12059929,114910.0,114900.0,1.99905239]
[1757899373163,0.18285532,114910.0,114900.0,1.99905239]
[1757899373364,0.08639894,114910.0,114900.0,1.99905239]
[1757899373566,0.1673986,114910.0,114900.0,1.99905239]
[1757899378470,0.08639894,114910.0,114900.0,1.99905239]
[1757899378673,0.1673986,114910.0,114900.0,1.99905239]
[1757899380777,0.19859572,114910.0,114900.0,1.99905239]
[1757899382583,0.1673986,114910.0,114900.0,1.99905239]
[1757899383185,0.11759585,114910.0,114900.0,1.99905239]
[1757899383376,0.1673986,114910.0,114900.0,1.99905239]
[1757899383684,0.08639894,114910.0,114900.0,1.99905239]
[1757899383877,0.1673986,114910.0,114900.0,1.99905239]
[1757899384685,0.19859565,114910.0,114900.0,1.99905239]
[1757899385477,0.11759599,114910.0,114900.0,1.91805273]
[1757899385676,0.19859565,114910.0,114900.0,1.99905239]
[1757899385984,0.08639894,114910.0,114900.0,1.91805273]
[1757899386285,0.1673986,114910.0,114900.0,1.91805273]
[1757899386485,0.08639894,114910.0,114900.0,1.99905239]
[1757899386780,0.1673986,114910.0,114900.0,1.99905239]
[1757899386969,0.19859624,114910.0,114900.0,1.99905239]
[1757899388576,0.19859624,114910.0,114900.0,1.91805273]
[1757899388876,0.19859624,114910.0,114900.0,1.99905239]
[1757899389279,0.1673986,114910.0,114900.0,1.99905239]
[1757899389682,0.08639894,114910.0,114900.0,1.99905239]
[1757899389884,0.1673986,114910.0,114900.0,1.99905239]
[1757899390083,0.08639894,114910.0,114900.0,1.91805273]
[1757899390277,0.1673986,114910.0,114900.0,1.99905239]
[1757899391185,0.08639894,114910.0,114900.0,1.99905239]
[1757899391385,0.1673986,114910.0,114900.0,1.99905239]
[1757899393582,0.1673986,114910.0,114900.0,1.91805273]
[1757899393782,0.1673986,114910.0,114900.0,1.99905239]
[1757899393977,0.1673986,114910.0,114900.0,1.91805273]
[1757899396388,0.1673986,114910.0,114900.0,1.99905239]
[1757899399591,0.19859722,114910.0,114900.0,1.99905239]
[1757899399891,0.11759756,114910.0,114900.0,2.87721205]
[1757899400091,0.08639894,114910.0,114900.0,2.87721205]
[1757899400593,0.08639894,114910.0,114900.0,2.71521273]
[1757899400798,0.15179742,114910.0,114900.0,2.79621239]
[1757899402185,0.11759707,114910.0,114900.0,3.12721205]
[1757899402390,0.07079776,114910.0,114900.0,3.12721205]
[1757899402790,0.07079776,114910.0,114900.0,2.69230205]
[1757899402990,0.07079776,114910.0,114900.0,3.12721205]
[1757899403389,0.06137931,114910.0,114900.0,3.12721205]
[1757899403892,0.08639894,114910.0,114900.0,3.12721205]
[1757899406693,0.09255293,114910.0,114900.0,3.12721205]
[1757899406893,0.05719325,114910.0,114900.0,3.93520401]
[1757899407200,0.02601963,114910.0,114900.0,4.17520401]
[1757899408802,0.02601963,114910.0,114900.0,4.44180401]
[1757899408998,0.09155293,114930.0,114910.0,0.0869841]
[1757899409200,0.04475362,114930.0,114920.0,1.39402932]
[1757899409401,0.04475362,114930.0,114920.0,1.40283512]
[1757899410106,0.04475362,114930.0,114920.0,0.59690932]
[1757899410403,0.04575362,114930.0,114920.0,1.39402932]
[1757899410901,0.01358,114930.0,114920.0,1.39402932]
[1757899411107,0.01458,114930.0,114920.0,1.39402932]
[1757899411700,0.01658,114930.0,114920.0,2.01402932]
[1757899412305,0.01658,114930.0,114920.0,2.26402932]
[1757899412500,0.01658,114930.0,114920.0,2.27288008]
[1757899412707,0.01658,114930.0,114920.0,1.47576008]
[1757899413006,0.01658,114930.0,114920.0,2.27280008]
[1757899413202,0.003,114930.0,114920.0,2.35977728]
[1757899413410,0.003,114930.0,114920.0,2.44077694]
[1757899413910,0.01357,114950.0,114930.0,0.0869696]
[1757899414099,0.01357,114950.0,114940.0,1.39394932]
[1757899414295,0.10408708,114960.0,114940.0,2.10191008]
[1757899414599,0.03402472,114960.0,114950.0,0.59690932]
[1757899414799,0.01357,114970.0,114950.0,1.20159379]
[1757899415000,0.01357,114970.0,114960.0,1.39390932]
[1757899415199,0.01357,114970.0,114960.0,1.98390932]
[1757899415510,0.01359,114980.0,114960.0,2.07490898]
[1757899415816,0.01359,114980.0,114970.0,0.43491]
[1757899416008,0.01359,114980.0,114970.0,0.51590966]
[1757899417303,0.01459,114980.0,114970.0,0.51590966]
[1757899418004,0.01659,114980.0,114970.0,0.51590966]
[1757899418307,0.01659,114980.0,114970.0,1.31282966]
[1757899418700,0.01659,114980.0,114970.0,1.23183]
[1757899418902,0.01659,114980.0,114970.0,1.31282966]
[1757899419307,0.01659,114980.0,114970.0,1.31278966]
[1757899419507,0.01659,114980.0,114970.0,0.51590966]
[1757899419709,0.01659,114980.0,114970.0,1.31274966]
[1757899420699,0.01659,114980.0,114970.0,0.51590966]
[1757899421107,0.0632259,114980.0,114970.0,1.31270966]
[1757899423206,0.14422556,114980.0,114970.0,0.43491]
[1757899423402,0.22219849,114980.0,114970.0,1.31266966]
[1757899423712,0.22219849,114980.0,114970.0,0.51590966]
[1757899426013,0.47219849,114980.0,114970.0,0.08099966]
[1757899426403,0.44102487,114980.0,114970.0,0.08099966]
[1757899426602,0.39096916,114980.0,114970.0,0.08099966]
[1757899427210,0.36002521,114980.0,114970.0,0.08099966]
[1757899428215,0.44102487,114980.0,114970.0,0.08099966]
[1757899429514,0.44102487,114980.0,114960.0,0.87763966]
[1757899429710,0.08099966,114980.0,114970.0,0.08099966]
[1757899429914,0.11543966,114980.0,114970.0,0.01421]
[1757899430905,0.11543966,114980.0,114970.0,0.09520966]
[1757899431806,0.03444,114980.0,114970.0,0.01421]
[1757899432209,0.03544,114980.0,114970.0,0.01421]
[1757899432607,0.03444,114960.0,114950.0,0.37944031]
[1757899432808,0.03444,114960.0,114950.0,0.43944031]
[1757899433005,0.03444,114960.0,114950.0,0.37944031]
[1757899434011,0.03444,114960.0,114950.0,0.38244031]
[1757899434413,0.01281,114960.0,114950.0,0.38244031]
[1757899434715,0.01281,114970.0,114950.0,0.38244031]
[1757899435017,0.03444,114970.0,114960.0,0.09511034]
[1757899435419,0.09669603,114970.0,114960.0,0.09511034]
[1757899436516,0.09669603,114970.0,114960.0,0.01421]
[1757899439615,0.09669603,114970.0,114960.0,0.09511034]
[1757899440921,0.07506603,114970.0,114960.0,0.09511034]
[1757899441424,0.09681603,114970.0,114960.0,0.09511034]
[1757899441613,0.12150555,114970.0,114960.0,0.09511034]
[1757899442323,0.12150555,114970.0,114960.0,0.01421]
[1757899442625,0.12151486,114970.0,114960.0,0.09511034]
[1757899443323,0.05924952,114970.0,114960.0,0.01421]
[1757899443523,0.2179699,114970.0,114960.0,0.01421]
[1757899443725,0.03462,114960.0,114950.0,0.09863031]
[1757899443925,0.12160589,114960.0,114950.0,0.11284031]
[1757899444223,0.09985589,114960.0,114950.0,0.11284031]
[1757899444419,0.08698589,114960.0,114950.0,0.11284031]
[1757899445125,0.08698589,114960.0,114950.0,0.11484031]
[1757899445324,0.08698589,114960.0,114950.0,0.11584031]
[1757899445526,0.08698589,114960.0,114950.0,0.03493997]
[1757899445829,0.08698589,114960.0,114950.0,0.11584031]
[1757899448826,0.08698589,114960.0,114950.0,0.46584031]
[1757899449127,0.02468952,114960.0,114950.0,0.36584031]
[1757899453430,0.07144429,114960.0,114950.0,0.36584031]
[1757899454627,0.07144429,114960.0,114950.0,0.70584031]
[1757899454833,0.07144429,114960.0,114950.0,0.87369495]
[1757899455030,0.02468952,114960.0,114950.0,0.97369495]
[1757899455234,0.04675477,114970.0,114950.0,0.97369495]
[1757899455428,0.04675477,114970.0,114960.0,0.95836068]
[1757899455635,0.04675477,114970.0,114960.0,1.59530738]
[1757899455936,0.05956477,114980.0,114960.0,2.11190738]
[1757899456130,0.05956477,114980.0,114970.0,0.08090034]
[1757899457636,0.08285477,114980.0,114970.0,0.08090034]
[1757899457835,0.08385477,114980.0,114970.0,0.08090034]
[1757899458037,0.08385477,114980.0,114970.0,0.79656]
[1757899458235,0.08485477,114980.0,114970.0,0.87746034]
[1757899458935,0.08485477,114980.0,114970.0,0.08090034]
[1757899459138,0.08485477,114980.0,114970.0,0.87742034]
[1757899459436,0.01309,114970.0,114960.0,1.14402034]
[1757899459629,0.04425694,114970.0,114960.0,1.74402034]
[1757899460526,0.06754694,114970.0,114960.0,1.74398034]
[1757899460931,0.06754694,114970.0,114960.0,1.14398034]
[1757899461737,0.06754694,114970.0,114960.0,0.87738034]
[1757899462036,0.04425694,114970.0,114960.0,0.87738034]
[1757899462231,0.04425694,114970.0,114960.0,0.95828068]
[1757899462535,0.01309,114970.0,114960.0,0.95828068]
[1757899463438,0.11402171,114980.0,114960.0,0.95828068]
[1757899463640,0.11402171,114980.0,114970.0,0.08090034]
[1757899465339,0.06826694,114980.0,114970.0,0.08090034]
[1757899465638,0.06926694,114980.0,114970.0,0.08090034]
[1757899465834,0.04597694,114980.0,114970.0,0.08090034]
[1757899466234,0.06926694,114980.0,114970.0,0.08090034]
[1757899467138,0.07042606,114980.0,114970.0,0.08090034]
[1757899467438,0.03925912,114980.0,114970.0,0.08090034]
[1757899467630,0.06254912,114980.0,114970.0,0.08090034]
[1757899469539,0.03925912,114980.0,114970.0,0.08090034]
[1757899472840,0.03925912,114980.0,114970.0,0.67090034]
[1757899473541,0.03925912,114980.0,114970.0,0.93750034]
[1757899475842,0.03925912,114980.0,114970.0,0.94624406]
[1757899476041,0.03925912,114980.0,114970.0,0.93750034]
[1757899477844,0.02644912,114980.0,114970.0,0.93750034]
[1757899479246,0.02644912,114980.0,114970.0,0.86516851]
[1757899479438,0.03985912,114980.0,114970.0,1.73386034]
[1757899481145,0.03985912,114980.0,114970.0,0.93750034]
[1757899481342,0.03985912,114980.0,114970.0,1.73386034]
[1757899482848,0.03985912,114980.0,114970.0,1.74246807]
[1757899483546,0.07102606,114980.0,114970.0,1.74246807]
[1757899483947,0.03985912,114980.0,114970.0,0.94610807]
[1757899484148,0.04657694,114980.0,114970.0,0.94610807]
[1757899484448,0.07102606,114980.0,114970.0,0.94610807]
[1757899484749,0.07102606,114980.0,114970.0,1.74242807]
[1757899485445,0.09400606,114980.0,114970.0,1.74242807]
[1757899485845,0.07102606,114980.0,114970.0,1.74242807]
[1757899487150,0.03985912,114980.0,114970.0,1.74242807]
[1757899490247,0.05761606,114980.0,114970.0,1.82936827]
[1757899490447,0.02644912,114980.0,114970.0,1.82936827]
[1757899491448,0.02644912,114980.0,114970.0,2.07936827]
[1757899491951,0.02644912,114980.0,114970.0,2.16019203]
[1757899492854,0.02644912,114980.0,114970.0,2.45019203]
[1757899493549,0.002,114980.0,114970.0,2.45019203]
[1757899493850,0.002,114980.0,114970.0,2.51919121]
[1757899493851,0.001,114980.0,114970.0,2.51919121]
[1757899494049,0.01309,115000.0,114970.0,2.51919121]
[1757899494252,0.01309,115000.0,114990.0,0.08086205]
[1757899494452,0.06036407,115000.0,114990.0,0.87710205]
[1757899494852,0.06036407,115000.0,114990.0,0.08086205]
[1757899495046,0.06036407,115000.0,114990.0,0.69198205]
[1757899496252,0.03738407,115000.0,114990.0,0.69198205]
[1757899496452,0.03738407,115000.0,114990.0,0.7728441]
[1757899496653,0.03738407,115000.0,114990.0,0.8728441]
[1757899497048,0.02429407,115000.0,114990.0,1.9194441]
[1757899497248,0.02529407,115000.0,114990.0,1.6494441]
[1757899497543,0.02729407,115000.0,114990.0,1.6494441]
[1757899498846,0.02629407,115000.0,114990.0,1.6494441]
[1757899500153,0.03930407,115000.0,114990.0,1.6494441]
[1757899502154,0.02629407,115000.0,114990.0,1.92723145]
[1757899502350,0.01341,115020.0,115010.0,0.0869102]
[1757899502657,0.01341,115030.0,115010.0,1.62565635]
[1757899502957,0.01341,115030.0,115020.0,0.24258615]
[1757899503257,0.01341,115030.0,115020.0,0.75258615]
[1757899503746,0.01301,115040.0,115020.0,1.05258615]
[1757899504055,0.01301,115040.0,115030.0,0.9578441]
[1757899504247,0.01301,115040.0,115030.0,1.48544983]
[1757899504449,0.01301,115040.0,115030.0,1.75544983]
[1757899504753,0.01301,115040.0,115030.0,1.48544983]
[1757899505149,0.01301,115050.0,115030.0,1.57234393]
[1757899505355,0.01301,115050.0,115040.0,0.24258615]
[1757899505556,0.04417694,115060.0,115040.0,0.78258615]
[1757899505750,0.01301,115060.0,115050.0,0.87694205]
[1757899506054,0.01301,115060.0,115050.0,1.4878041]
[1757899506250,0.06419079,115070.0,115050.0,1.50536802]
[1757899506449,0.03302385,115070.0,115060.0,0.1617241]
[1757899506649,0.03302385,115070.0,115060.0,0.7217241]
[1757899507850,0.03502385,115070.0,115060.0,1.5177641]
[1757899508857,0.03702385,115070.0,115060.0,1.5177641]
[1757899509558,0.03702385,115070.0,115060.0,1.59862615]
[1757899509954,0.03702385,115070.0,115060.0,1.5177641]
[1757899512254,0.03702385,115070.0,115060.0,0.7217241]
[1757899512660,0.03702385,115070.0,115060.0,1.5175641]
[1757899512861,0.01701,115070.0,115060.0,1.5175641]
[1757899513560,0.04817694,115070.0,115060.0,1.5175641]
[1757899514455,0.07222047,115070.0,115060.0,1.5175641]
[1757899514960,0.07221663,115070.0,115060.0,1.5175641]
[1757899515259,0.07221663,115070.0,115060.0,1.7841641]
[1757899518365,0.09493171,115070.0,115060.0,1.7841641]
[1757899518657,0.1189714,115070.0,115060.0,1.7841641]
[1757899518862,0.05920663,115070.0,115060.0,1.98529865]
[1757899519065,0.02803969,115070.0,115060.0,1.98529865]
[1757899519759,0.02803969,115070.0,115060.0,1.89842615]
[1757899519964,0.02803969,115070.0,115060.0,1.98529865]
[1757899520264,0.02803969,115070.0,115060.0,2.25189865]
[1757899520465,0.02703969,115070.0,115060.0,1.98529865]
[1757899520665,0.02703969,115070.0,115060.0,2.23529865]
[1757899520867,0.02503969,115070.0,115060.0,2.23529865]
[1757899521063,0.09140171,115090.0,115070.0,0.086865]
[1757899521256,0.03116694,115090.0,115080.0,1.12544355]
[1757899521457,0.03116694,115090.0,115080.0,2.03544355]
[1757899521662,0.04464694,115100.0,115090.0,0.0868501]
[1757899521861,0.03116694,115100.0,115090.0,0.8085742]
[1757899522157,0.06023477,115110.0,115090.0,1.18691604]
[1757899522158,0.09122794,115110.0,115090.0,1.18691604]
[1757899522359,0.04447317,115110.0,115100.0,1.03882615]
[1757899522561,0.04447317,115110.0,115100.0,1.60882615]
[1757899523168,0.01348,115110.0,115100.0,1.60882615]
[1757899523369,0.01348,115110.0,115100.0,1.99676782]
[1757899524070,0.01448,115110.0,115100.0,1.99676782]
[1757899524572,0.01448,115110.0,115100.0,1.19052782]
[1757899524764,0.03828,115110.0,115100.0,0.71880372]
[1757899524970,0.01648,115110.0,115100.0,1.59554577]
[1757899525170,0.01648,115110.0,115100.0,0.79966577]
[1757899525371,0.01648,115110.0,115100.0,1.59726577]
[1757899526267,0.03928,115110.0,115100.0,1.59718577]
[1757899526462,0.08603477,115110.0,115100.0,1.59718577]
[1757899529976,0.06323477,115110.0,115100.0,1.59718577]
[1757899531477,0.06323477,115110.0,115100.0,1.67804782]
[1757899532977,0.0869841,115110.0,115100.0,1.67804782]
[1757899533574,0.04022933,115110.0,115100.0,1.67804782]
[1757899540180,0.04022933,115110.0,115100.0,1.76489012]
[1757899540475,0.01348,115120.0,115110.0,0.0868348]
[1757899540680,0.06023477,115130.0,115120.0,0.0868272]
[1757899540881,0.01348,115130.0,115120.0,1.76331428]
[1757899541868,0.01548,115130.0,115120.0,1.76331428]
[1757899542074,0.01548,115130.0,115120.0,0.88004708]
[1757899542276,0.01548,115130.0,115120.0,1.67648708]
[1757899542477,0.01348,115130.0,115120.0,1.67648708]
[1757899542679,0.01548,115130.0,115120.0,1.67648708]
[1757899544482,0.01548,115130.0,115120.0,0.88004708]
[1757899544686,0.0377,115130.0,115120.0,1.59582503]
[1757899545582,0.08445477,115130.0,115120.0,1.59574503]
[1757899546078,0.06223477,115130.0,115120.0,1.67660708]
[1757899546283,0.01548,115130.0,115120.0,1.67660708]
[1757899546476,0.06223477,115130.0,115120.0,1.67660708]
[1757899548086,0.08445477,115130.0,115120.0,0.79918503]
[1757899548281,0.08445477,115130.0,115120.0,0.40918503]
[1757899548581,0.08445477,115130.0,115120.0,1.20554503]
[1757899549180,0.08445477,115130.0,115120.0,1.50554503]
[1757899549782,0.06223477,115130.0,115120.0,1.50554503]
[1757899550383,0.01548,115130.0,115120.0,1.58640708]
[1757899550579,0.01548,115130.0,115120.0,1.87640708]
[1757899550784,0.06225643,115130.0,115120.0,1.87640708]
[1757899551184,0.06225643,115130.0,115120.0,1.96323438]
[1757899551385,0.07577637,115140.0,115130.0,0.0868197]
[1757899551684,0.01348,115140.0,115130.0,1.15940585]
[1757899551882,0.09551406,115150.0,115130.0,1.15940585]
[1757899552087,0.15291641,115160.0,115140.0,1.12571855]
[1757899552283,0.07509637,115160.0,115150.0,0.1617241]
[1757899552478,0.07509637,115160.0,115150.0,1.178529]
[1757899552479,0.09850065,115160.0,115150.0,1.178529]
[1757899552674,0.03620428,115160.0,115150.0,1.25939105]
[1757899552873,0.03116544,115160.0,115150.0,1.27678315]
[1757899553180,0.0128,115170.0,115160.0,0.0867974]
[1757899553376,0.0128,115170.0,115160.0,1.93598355]
[1757899553583,0.0128,115180.0,115160.0,1.93598355]
[1757899553785,0.0128,115180.0,115170.0,0.16113468]
[1757899554078,0.03502,115180.0,115170.0,0.70056734]
[1757899554483,0.03502,115180.0,115170.0,1.64860784]
[1757899555083,0.03602,115180.0,115170.0,1.64860784]
[1757899555486,0.03702,115180.0,115170.0,1.64860784]
[1757899555679,0.03702,115180.0,115170.0,1.48747316]
[1757899555879,0.0148,115180.0,115170.0,1.64860784]
[1757899558889,0.28694,115180.0,115160.0,0.01738683]
[1757899559189,0.03507,115170.0,115160.0,0.94738683]
[1757899559389,0.01293,115170.0,115160.0,1.08886277]
[1757899560286,0.01293,115170.0,115160.0,1.24999745]
[1757899561686,0.0128,115180.0,115160.0,1.88736219]
[1757899561895,0.0128,115190.0,115170.0,0.32849112]
[1757899562091,0.0128,115190.0,115180.0,0.95937468]
[1757899562385,0.0128,115190.0,115180.0,1.66615698]
[1757899562585,0.01293,115210.0,115180.0,2.23615698]
[1757899562788,0.01293,115210.0,115200.0,0.16113468]
[1757899562991,0.01293,115210.0,115200.0,1.46949468]
[1757899563890,0.01293,115210.0,115200.0,1.40836904]
[1757899564081,0.03507,115210.0,115200.0,0.61000904]
[1757899564291,0.03507,115200.0,115190.0,0.10000904]
[1757899564487,0.03507,115200.0,115190.0,1.33780904]
[1757899564681,0.01293,115200.0,115190.0,1.33780904]
[1757899564885,0.05785524,115200.0,115190.0,0.70000904]
[1757899565083,0.01293,115190.0,115180.0,0.11724373]
[1757899565289,0.05785524,115190.0,115180.0,0.88695469]
[1757899565490,0.05785524,115190.0,115180.0,0.98696373]
[1757899565791,0.05785524,115190.0,115180.0,0.66724373]
[1757899566097,0.05685524,115190.0,115180.0,0.87100373]
[1757899566691,0.03471524,115190.0,115180.0,0.87100373]
[1757899566887,0.03471524,115190.0,115180.0,1.48100373]
[1757899567286,0.03471524,115190.0,115180.0,1.56778603]
[1757899567685,0.03471524,115190.0,115180.0,1.48300373]
[1757899567896,0.03471524,115190.0,115180.0,1.48400373]
[1757899569600,0.03471524,115190.0,115180.0,0.63023469]
[1757899569799,0.03471524,115190.0,115180.0,1.52924373]
[1757899571603,0.03471524,115190.0,115180.0,1.61602603]
[1757899571798,0.03471524,115190.0,115180.0,1.93602603]
[1757899572702,0.03471524,115190.0,115180.0,1.84924373]
[1757899573200,0.03471524,115190.0,115180.0,1.93602603]
[1757899573595,0.02278524,115190.0,115180.0,1.93602603]
[1757899573791,0.08225353,115200.0,115190.0,0.0867748]
[1757899573997,0.08225353,115200.0,115190.0,1.07678384]
[1757899574399,0.02278524,115200.0,115190.0,1.07678384]